[Event "Live Chess"]
[Site "Chess.com"]
[Date "2023.05.20"]
[Round "-"]
[White "Richardallis"]
[Black "Horseymobile"]
[Result "1-0"]
[WhiteElo "1650"]
[BlackElo "1236"]
[TimeControl "300"]
[EndTime "11:01:12 PDT"]
[Termination "Richardallis won by checkmate"]

1. d4 {[%clk 0:04:57.4]} 1... Nf6 {[%clk 0:04:58.8]} 2. Nf3 {[%clk 0:04:56.5]}
2... g6 {[%clk 0:04:57.5]} 3. Bg5 {[%clk 0:04:55.7]} 3... Bg7 {[%clk 0:04:56.1]}
4. Nbd2 {[%clk 0:04:55.1]} 4... d6 {[%clk 0:04:55]} 5. c3 {[%clk 0:04:53.1]}
5... Nc6 {[%clk 0:04:53.5]} 6. e4 {[%clk 0:04:52]} 6... O-O {[%clk 0:04:51.8]}
7. Bc4 {[%clk 0:04:50.2]} 7... Bd7 {[%clk 0:04:49.8]} 8. Qe2 {[%clk 0:04:47.9]}
8... a6 {[%clk 0:04:38.7]} 9. h3 {[%clk 0:04:42.2]} 9... b5 {[%clk 0:04:36.4]}
10. Bb3 {[%clk 0:04:40]} 10... Bc8 {[%clk 0:04:23.3]} 11. e5 {[%clk 0:04:35]}
11... dxe5 {[%clk 0:04:20.5]} 12. dxe5 {[%clk 0:04:34.5]} 12... Nd5 {[%clk
0:04:15.1]} 13. O-O {[%clk 0:04:28]} 13... h6 {[%clk 0:03:39.9]} 14. Bh4 {[%clk
0:04:26]} 14... g5 {[%clk 0:03:27.1]} 15. Bg3 {[%clk 0:04:24.7]} 15... e6 {[%clk
0:03:15.6]} 16. Bc2 {[%clk 0:04:23.1]} 16... Bb7 {[%clk 0:03:05.7]} 17. Qe4
{[%clk 0:04:21.2]} 17... f5 {[%clk 0:02:57.6]} 18. exf6 {[%clk 0:04:20]} 18...
Nxf6 {[%clk 0:02:57.1]} 19. Qxe6+ {[%clk 0:04:18.8]} 19... Kh8 {[%clk
0:02:56.2]} 20. Rad1 {[%clk 0:04:14.4]} 20... Re8 {[%clk 0:02:54.6]} 21. Qf5
{[%clk 0:04:13.3]} 21... Ne7 {[%clk 0:02:52]} 22. Qd3 {[%clk 0:04:10.7]} 22...
Qc8 {[%clk 0:02:35.8]} 23. Ne5 {[%clk 0:04:08.9]} 23... Bd5 {[%clk 0:02:27.2]}
24. f4 {[%clk 0:04:02]} 24... Rd8 {[%clk 0:02:14.9]} 25. fxg5 {[%clk 0:04:00.2]}
25... Bxg2 {[%clk 0:02:13.3]} 26. Ng6+ {[%clk 0:03:50.9]} 26... Nxg6 {[%clk
0:02:10.9]} 27. Qxg6 {[%clk 0:03:50.4]} 27... Qxh3 {[%clk 0:02:05.2]} 28. Rxf6
{[%clk 0:03:40.9]} 28... Qh1+ {[%clk 0:02:01.6]} 29. Kf2 {[%clk 0:03:39.8]}
29... Rxd2+ {[%clk 0:01:31.1]} 30. Rxd2 {[%clk 0:03:37.4]} 30... hxg5 {[%clk
0:01:28.1]} 31. Rd1 {[%clk 0:03:27.6]} 31... Qh3 {[%clk 0:01:12.2]} 32. Rf7
{[%clk 0:03:25.4]} 32... Rf8 {[%clk 0:01:02.2]} 33. Rxf8+ {[%clk 0:03:22.1]}
33... Bxf8 {[%clk 0:01:00.9]} 34. Be5+ {[%clk 0:03:21.4]} 34... Bg7 {[%clk
0:00:52.4]} 35. Qxg7# {[%clk 0:03:20.2]} 1-0

[Event "Live Chess"]
[Site "Chess.com"]
[Date "2023.05.20"]
[Round "-"]
[White "diana21strabt"]
[Black "misha464"]
[Result "1-0"]
[WhiteElo "1709"]
[BlackElo "759"]
[TimeControl "300"]
[EndTime "11:01:14 PDT"]
[Termination "diana21strabt won by resignation"]

1. e4 {[%clk 0:04:58.5]} 1... e5 {[%clk 0:04:58.9]} 2. Nf3 {[%clk 0:04:57.5]}
2... Nc6 {[%clk 0:04:57.8]} 3. d4 {[%clk 0:04:56.3]} 3... exd4 {[%clk 0:04:57]}
4. Bc4 {[%clk 0:04:55.4]} 4... d6 {[%clk 0:04:54]} 5. O-O {[%clk 0:04:53.5]}
5... Bg4 {[%clk 0:04:52.7]} 6. h3 {[%clk 0:04:52]} 6... Bxf3 {[%clk 0:04:52.1]}
7. Qxf3 {[%clk 0:04:50.9]} 7... Nf6 {[%clk 0:04:52]} 8. Re1 {[%clk 0:04:46.8]}
8... Be7 {[%clk 0:04:50.2]} 9. Bg5 {[%clk 0:04:45]} 9... O-O {[%clk 0:04:48.1]}
10. Nd2 {[%clk 0:04:40.5]} 10... h6 {[%clk 0:04:44.4]} 11. Bxf6 {[%clk
0:04:39.1]} 11... Bxf6 {[%clk 0:04:43.1]} 12. Bd3 {[%clk 0:04:38]} 12... Ne5
{[%clk 0:04:39.1]} 13. Qf5 {[%clk 0:04:35.7]} 13... Nxd3 {[%clk 0:04:36.7]} 14.
cxd3 {[%clk 0:04:35]} 14... c5 {[%clk 0:04:35.8]} 15. Nf3 {[%clk 0:04:33.6]}
15... Re8 {[%clk 0:04:33]} 16. Rac1 {[%clk 0:04:30]} 16... a5 {[%clk 0:04:30.7]}
17. Nd2 {[%clk 0:04:28.9]} 17... b5 {[%clk 0:04:28.7]} 18. a4 {[%clk 0:04:27.2]}
18... Rc8 {[%clk 0:04:21.4]} 19. axb5 {[%clk 0:04:25.6]} 19... a4 {[%clk
0:04:19.4]} 20. Nc4 {[%clk 0:04:23.8]} 20... Re7 {[%clk 0:04:10.6]} 21. Qd5
{[%clk 0:04:21]} 21... Qd7 {[%clk 0:04:06]} 22. b6 {[%clk 0:04:17.5]} 22... Rb8
{[%clk 0:03:54.8]} 23. Ra1 {[%clk 0:04:08.3]} 23... Ra8 {[%clk 0:03:44.5]} 1-0

[Event "Live Chess"]
[Site "Chess.com"]
[Date "2023.05.20"]
[Round "-"]
[White "Jeffaroow"]
[Black "KuriyamaMiraiUA"]
[Result "0-1"]
[WhiteElo "461"]
[BlackElo "684"]
[TimeControl "300"]
[EndTime "11:01:18 PDT"]
[Termination "KuriyamaMiraiUA won by checkmate"]

1. e4 {[%clk 0:04:57.8]} 1... c6 {[%clk 0:04:58.9]} 2. Nf3 {[%clk 0:04:56.2]}
2... d5 {[%clk 0:04:58.1]} 3. d4 {[%clk 0:04:51.8]} 3... dxe4 {[%clk 0:04:52]}
4. Ng5 {[%clk 0:04:47.9]} 4... Nf6 {[%clk 0:04:42.2]} 5. Nc3 {[%clk 0:04:42]}
5... e6 {[%clk 0:04:33.6]} 6. Ncxe4 {[%clk 0:04:36.7]} 6... Be7 {[%clk
0:04:13.9]} 7. Nxf6+ {[%clk 0:04:34.6]} 7... Bxf6 {[%clk 0:04:12.4]} 8. Ne4
{[%clk 0:04:32.7]} 8... O-O {[%clk 0:03:58.6]} 9. Nxf6+ {[%clk 0:04:30.7]} 9...
Qxf6 {[%clk 0:03:57.8]} 10. Be3 {[%clk 0:04:28.9]} 10... e5 {[%clk 0:03:46.1]}
11. Bd3 {[%clk 0:04:21.6]} 11... exd4 {[%clk 0:03:40.9]} 12. Bxh7+ {[%clk
0:04:18.4]} 12... Kxh7 {[%clk 0:03:38.9]} 13. Qd3+ {[%clk 0:04:13.2]} 13... Kg8
{[%clk 0:03:32.2]} 14. Bxd4 {[%clk 0:04:11.4]} 14... Re8+ {[%clk 0:03:18.5]} 15.
Kf1 {[%clk 0:04:01.9]} 15... Qe7 {[%clk 0:03:02.3]} 16. g3 {[%clk 0:03:54.3]}
16... c5 {[%clk 0:02:44.4]} 17. Be3 {[%clk 0:03:36.7]} 17... Rd8 {[%clk
0:02:29.1]} 18. Qc3 {[%clk 0:03:13.1]} 18... Nc6 {[%clk 0:02:20.2]} 19. Bxc5
{[%clk 0:03:09.9]} 19... Qe6 {[%clk 0:01:42.5]} 20. Re1 {[%clk 0:02:57.7]} 20...
Qh3+ {[%clk 0:01:29.6]} 21. Kg1 {[%clk 0:02:51.6]} 21... Bg4 {[%clk 0:01:22]}
22. Be7 {[%clk 0:02:29.8]} 22... Nxe7 {[%clk 0:01:15.2]} 23. Rxe7 {[%clk
0:02:27.2]} 23... Be6 {[%clk 0:00:59.4]} 24. f3 {[%clk 0:01:49]} 24... Rac8
{[%clk 0:00:45]} 25. Qb3 {[%clk 0:01:36.8]} 25... Rd1+ {[%clk 0:00:40.1]} 26.
Kf2 {[%clk 0:01:31.3]} 26... Rxh1 {[%clk 0:00:31.6]} 27. Qxb7 {[%clk 0:01:24]}
27... Rxc2+ {[%clk 0:00:26.7]} 28. Ke3 {[%clk 0:01:20.7]} 28... Re1+ {[%clk
0:00:19.7]} 29. Kf4 {[%clk 0:01:16.7]} 29... Qf5# {[%clk 0:00:17.4]} 0-1

[Event "Live Chess"]
[Site "Chess.com"]
[Date "2023.05.20"]
[Round "-"]
[White "BogdanBeleiUkraine"]
[Black "Tushinskiy"]
[Result "0-1"]
[WhiteElo "1174"]
[BlackElo "2108"]
[TimeControl "300"]
[EndTime "11:01:22 PDT"]
[Termination "Tushinskiy won by resignation"]

1. e4 {[%clk 0:04:58.7]} 1... e5 {[%clk 0:04:59]} 2. Bc4 {[%clk 0:04:56.6]} 2...
d6 {[%clk 0:04:58.9]} 3. Nc3 {[%clk 0:04:55.6]} 3... Nf6 {[%clk 0:04:58]} 4.
Nge2 {[%clk 0:04:54.3]} 4... Be7 {[%clk 0:04:57]} 5. h3 {[%clk 0:04:52.7]} 5...
O-O {[%clk 0:04:56.9]} 6. O-O {[%clk 0:04:51.8]} 6... c6 {[%clk 0:04:56.6]} 7.
a4 {[%clk 0:04:48.9]} 7... Nbd7 {[%clk 0:04:55.8]} 8. f4 {[%clk 0:04:47.2]} 8...
a6 {[%clk 0:04:55.3]} 9. f5 {[%clk 0:04:44.6]} 9... Nc5 {[%clk 0:04:50.8]} 10.
d3 {[%clk 0:04:42.8]} 10... d5 {[%clk 0:04:48.2]} 11. Ba2 {[%clk 0:04:37]} 11...
dxe4 {[%clk 0:04:46.1]} 12. dxe4 {[%clk 0:04:33.8]} 12... Ncxe4 {[%clk
0:04:45.5]} 13. Nxe4 {[%clk 0:04:31.4]} 13... Nxe4 {[%clk 0:04:44]} 14. Be3
{[%clk 0:04:25.6]} 14... Qc7 {[%clk 0:04:42]} 15. Qd3 {[%clk 0:04:09]} 15... Nf6
{[%clk 0:04:38.8]} 16. Ng3 {[%clk 0:04:05.5]} 16... Rd8 {[%clk 0:04:33.4]} 17.
Qe2 {[%clk 0:04:03.6]} 17... b5 {[%clk 0:04:28.1]} 18. axb5 {[%clk 0:03:59.2]}
18... cxb5 {[%clk 0:04:28]} 19. Qf3 {[%clk 0:03:54.9]} 19... Bb7 {[%clk
0:04:26.9]} 20. Qe2 {[%clk 0:03:50.7]} 20... e4 {[%clk 0:04:23.5]} 21. Bg5
{[%clk 0:03:47.1]} 21... Qxg3 {[%clk 0:04:21.1]} 22. Bxf6 {[%clk 0:03:44.3]}
22... Bxf6 {[%clk 0:04:19.8]} 23. Qh5 {[%clk 0:03:41.1]} 23... Rd7 {[%clk
0:04:14.8]} 24. Rad1 {[%clk 0:03:38.3]} 24... e3 {[%clk 0:04:13.5]} 25. Rf3
{[%clk 0:03:36.4]} 25... Rxd1+ {[%clk 0:04:10.3]} 0-1

[Event "Live Chess"]
[Site "Chess.com"]
[Date "2023.05.20"]
[Round "-"]
[White "Enhard"]
[Black "Tilbs_12"]
[Result "1-0"]
[WhiteElo "1451"]
[BlackElo "1576"]
[TimeControl "300"]
[EndTime "11:01:29 PDT"]
[Termination "Enhard won by resignation"]

1. d4 {[%clk 0:04:57.8]} 1... d5 {[%clk 0:04:59]} 2. Bf4 {[%clk 0:04:54.2]} 2...
c5 {[%clk 0:04:57.2]} 3. c3 {[%clk 0:04:52.9]} 3... Nf6 {[%clk 0:04:52.2]} 4. e3
{[%clk 0:04:51.4]} 4... Bf5 {[%clk 0:04:50.7]} 5. Nf3 {[%clk 0:04:48.8]} 5... e6
{[%clk 0:04:49.4]} 6. h3 {[%clk 0:04:47.6]} 6... Nc6 {[%clk 0:04:46.3]} 7. Bb5
{[%clk 0:04:45]} 7... Bd6 {[%clk 0:04:42.3]} 8. Ne5 {[%clk 0:04:40.5]} 8... Rc8
{[%clk 0:04:00.7]} 9. Nxc6 {[%clk 0:04:33.4]} 9... bxc6 {[%clk 0:03:59.6]} 10.
Bxd6 {[%clk 0:04:30.2]} 10... Qxd6 {[%clk 0:03:58]} 11. Be2 {[%clk 0:04:28.4]}
11... O-O {[%clk 0:03:54.6]} 12. O-O {[%clk 0:04:26.8]} 12... cxd4 {[%clk
0:03:52.5]} 13. exd4 {[%clk 0:04:24.7]} 13... c5 {[%clk 0:03:51.1]} 14. dxc5
{[%clk 0:04:20.5]} 14... Qxc5 {[%clk 0:03:45.3]} 15. Nd2 {[%clk 0:04:19.4]}
15... a5 {[%clk 0:03:36.8]} 16. Nf3 {[%clk 0:04:13.1]} 16... Rb8 {[%clk
0:03:19.4]} 17. Qc1 {[%clk 0:03:57.6]} 17... Rb6 {[%clk 0:03:14.3]} 18. Nd4
{[%clk 0:03:53.8]} 18... Bg6 {[%clk 0:03:11.8]} 19. a4 {[%clk 0:03:45.9]} 19...
e5 {[%clk 0:02:42.5]} 20. Nf3 {[%clk 0:03:36.6]} 20... Qd6 {[%clk 0:02:36.8]}
21. Bb5 {[%clk 0:03:34]} 21... Rc8 {[%clk 0:02:31.4]} 22. Qd1 {[%clk 0:03:30.8]}
22... Ne4 {[%clk 0:02:23]} 23. Re1 {[%clk 0:03:04.4]} 23... f6 {[%clk
0:02:18.3]} 24. Qb3 {[%clk 0:02:38.9]} 24... Be8 {[%clk 0:02:12.9]} 25. Red1
{[%clk 0:02:28.8]} 25... Bxb5 {[%clk 0:01:28.6]} 26. axb5 {[%clk 0:02:25.6]}
26... Rd8 {[%clk 0:01:12.1]} 27. Rxa5 {[%clk 0:02:13.3]} 27... Nc5 {[%clk
0:01:10.2]} 28. Qa2 {[%clk 0:01:57.5]} 28... Kf7 {[%clk 0:00:54.1]} 29. Ra7+
{[%clk 0:01:51.7]} 29... Ke6 {[%clk 0:00:52.6]} 30. Ra5 {[%clk 0:01:33.5]} 30...
Rdb8 {[%clk 0:00:43.6]} 31. c4 {[%clk 0:01:29.3]} 31... d4 {[%clk 0:00:42]} 32.
b4 {[%clk 0:01:13.4]} 32... e4 {[%clk 0:00:30.6]} 33. Nxd4+ {[%clk 0:01:06.9]}
33... Ke5 {[%clk 0:00:26.7]} 34. bxc5 {[%clk 0:01:03.6]} 34... Qxc5 {[%clk
0:00:25.5]} 35. Nc6+ {[%clk 0:00:59.1]} 35... Kf5 {[%clk 0:00:22.8]} 36. Nxb8
{[%clk 0:00:52.4]} 36... Rxb8 {[%clk 0:00:21.2]} 37. b6 {[%clk 0:00:50.6]} 1-0

[Event "Live Chess"]
[Site "Chess.com"]
[Date "2023.05.20"]
[Round "-"]
[White "KeithArkell"]
[Black "Outspanner"]
[Result "1-0"]
[WhiteElo "2612"]
[BlackElo "1534"]
[TimeControl "300"]
[EndTime "11:01:38 PDT"]
[Termination "KeithArkell won by resignation"]

1. d4 {[%clk 0:04:58]} 1... f5 {[%clk 0:04:56.3]} 2. Nc3 {[%clk 0:04:55.7]} 2...
Nf6 {[%clk 0:04:54]} 3. Bg5 {[%clk 0:04:54.5]} 3... e6 {[%clk 0:04:48.8]} 4. e4
{[%clk 0:04:53.2]} 4... fxe4 {[%clk 0:04:45.1]} 5. Nxe4 {[%clk 0:04:52.1]} 5...
Be7 {[%clk 0:04:45]} 6. Bxf6 {[%clk 0:04:51.3]} 6... Bxf6 {[%clk 0:04:41]} 7.
Nf3 {[%clk 0:04:50.9]} 7... O-O {[%clk 0:04:37.5]} 8. Bd3 {[%clk 0:04:50]} 8...
Nc6 {[%clk 0:04:28.9]} 9. c3 {[%clk 0:04:48.5]} 9... d6 {[%clk 0:04:26.9]} 10.
Qe2 {[%clk 0:04:45.6]} 10... a6 {[%clk 0:04:20.9]} 11. O-O-O {[%clk 0:04:43.8]}
11... b5 {[%clk 0:04:20.3]} 12. h4 {[%clk 0:04:41.8]} 12... b4 {[%clk
0:04:14.8]} 13. Neg5 {[%clk 0:04:36.9]} 13... bxc3 {[%clk 0:04:07.5]} 14. Qe4
{[%clk 0:04:33.8]} 14... g6 {[%clk 0:04:01.1]} 15. Qxc6 {[%clk 0:04:26.2]} 15...
cxb2+ {[%clk 0:03:57.1]} 16. Kb1 {[%clk 0:04:25.4]} 16... Bd7 {[%clk 0:03:39.7]}
17. Qc4 {[%clk 0:04:20.9]} 17... d5 {[%clk 0:03:35]} 18. Qc2 {[%clk 0:04:18.7]}
18... Qe7 {[%clk 0:03:19.5]} 19. Rde1 {[%clk 0:04:12.5]} 19... Bxg5 {[%clk
0:03:17.1]} 20. Nxg5 {[%clk 0:04:07.5]} 20... Rab8 {[%clk 0:02:25.6]} 21. f3
{[%clk 0:03:53.4]} 21... Qf6 {[%clk 0:02:19.3]} 22. Re5 {[%clk 0:03:46.2]} 22...
Rb4 {[%clk 0:02:12.5]} 23. Qxc7 {[%clk 0:03:32.4]} 23... Rd8 {[%clk 0:02:04.6]}
24. Nxe6 {[%clk 0:03:16.2]} 24... Bxe6 {[%clk 0:01:53]} 25. Rxe6 {[%clk
0:03:14.1]} 25... Qxe6 {[%clk 0:01:46.3]} 26. Qxd8+ {[%clk 0:03:13.2]} 26... Kg7
{[%clk 0:01:45.3]} 27. Qc7+ {[%clk 0:03:12.1]} 27... Kg8 {[%clk 0:01:33.7]} 28.
Qe5 {[%clk 0:03:07.6]} 28... Qf7 {[%clk 0:01:23.4]} 29. Re1 {[%clk 0:03:03.2]}
29... Rb7 {[%clk 0:01:09.8]} 30. Bc2 {[%clk 0:02:51.9]} 30... Rc7 {[%clk
0:00:17.2]} 31. Qe8+ {[%clk 0:02:45.1]} 31... Qxe8 {[%clk 0:00:15.6]} 32. Rxe8+
{[%clk 0:02:44]} 32... Kf7 {[%clk 0:00:15.5]} 33. Re5 {[%clk 0:02:42.2]} 1-0

[Event "Live Chess"]
[Site "Chess.com"]
[Date "2023.05.20"]
[Round "-"]
[White "worldchessleaguelive"]
[Black "LiamBellwood"]
[Result "0-1"]
[WhiteElo "1388"]
[BlackElo "2079"]
[TimeControl "300"]
[EndTime "11:01:38 PDT"]
[Termination "LiamBellwood won by resignation"]

1. d4 {[%clk 0:04:57.6]} 1... e6 {[%clk 0:04:59.9]} 2. Bf4 {[%clk 0:04:56]} 2...
f5 {[%clk 0:04:59.5]} 3. Nf3 {[%clk 0:04:54.5]} 3... Nf6 {[%clk 0:04:59.4]} 4.
e3 {[%clk 0:04:53.4]} 4... b6 {[%clk 0:04:54.1]} 5. Be2 {[%clk 0:04:51.1]} 5...
Bb7 {[%clk 0:04:53.3]} 6. Nbd2 {[%clk 0:04:48]} 6... Bd6 {[%clk 0:04:52.3]} 7.
Bxd6 {[%clk 0:04:45.2]} 7... cxd6 {[%clk 0:04:52.2]} 8. c4 {[%clk 0:04:43.9]}
8... d5 {[%clk 0:04:49.5]} 9. cxd5 {[%clk 0:04:42.3]} 9... Bxd5 {[%clk
0:04:43.5]} 10. Bc4 {[%clk 0:04:40.1]} 10... Bb7 {[%clk 0:04:32.1]} 11. Qb3
{[%clk 0:04:32.4]} 11... O-O {[%clk 0:04:27.1]} 12. Ng5 {[%clk 0:04:09.1]} 12...
Re8 {[%clk 0:04:06.2]} 13. O-O {[%clk 0:03:46.9]} 13... Nc6 {[%clk 0:04:03]} 14.
Rac1 {[%clk 0:03:34.2]} 14... Na5 {[%clk 0:04:02.2]} 15. Qd3 {[%clk 0:03:22.9]}
15... Nxc4 {[%clk 0:04:01.5]} 16. Rxc4 {[%clk 0:03:18.2]} 16... Ba6 {[%clk
0:03:58.6]} 17. Rfc1 {[%clk 0:03:12.4]} 17... Bxc4 {[%clk 0:03:57.4]} 18. Nxc4
{[%clk 0:03:06.8]} 18... Rc8 {[%clk 0:03:53.9]} 19. Re1 {[%clk 0:02:55]} 19...
h6 {[%clk 0:03:46.4]} 20. Nf3 {[%clk 0:02:41]} 20... d6 {[%clk 0:03:38.2]} 21.
Qa3 {[%clk 0:02:37.9]} 21... Rxc4 {[%clk 0:03:34.7]} 22. Qxa7 {[%clk 0:02:36.9]}
22... Qc7 {[%clk 0:03:32]} 0-1

[Event "Live Chess"]
[Site "Chess.com"]
[Date "2023.05.20"]
[Round "-"]
[White "smoggyrabbit"]
[Black "Delacorta"]
[Result "1-0"]
[WhiteElo "1622"]
[BlackElo "1422"]
[TimeControl "300"]
[EndTime "11:01:43 PDT"]
[Termination "smoggyrabbit won by resignation"]

1. d4 {[%clk 0:04:59.3]} 1... e6 {[%clk 0:04:58.8]} 2. Nf3 {[%clk 0:04:56.1]}
2... f5 {[%clk 0:04:57.8]} 3. e3 {[%clk 0:04:54.5]} 3... Nf6 {[%clk 0:04:57.1]}
4. Be2 {[%clk 0:04:53.8]} 4... d5 {[%clk 0:04:56.2]} 5. O-O {[%clk 0:04:51.8]}
5... Bd6 {[%clk 0:04:54.9]} 6. b3 {[%clk 0:04:50.9]} 6... O-O {[%clk 0:04:53.7]}
7. Bb2 {[%clk 0:04:50.1]} 7... b6 {[%clk 0:04:45.4]} 8. c4 {[%clk 0:04:48.9]}
8... Ba6 {[%clk 0:04:42.3]} 9. Nbd2 {[%clk 0:04:44.7]} 9... Ne4 {[%clk
0:04:38.8]} 10. Nxe4 {[%clk 0:04:16.6]} 10... fxe4 {[%clk 0:04:30.3]} 11. Ne5
{[%clk 0:04:14.1]} 11... Bxe5 {[%clk 0:04:10.2]} 12. dxe5 {[%clk 0:04:14]} 12...
c6 {[%clk 0:03:40.9]} 13. cxd5 {[%clk 0:03:49]} 13... cxd5 {[%clk 0:03:34.4]}
14. Rc1 {[%clk 0:03:44.6]} 14... Bxe2 {[%clk 0:03:32.4]} 15. Qxe2 {[%clk
0:03:44.5]} 15... Na6 {[%clk 0:03:16.1]} 16. Qxa6 {[%clk 0:03:31.8]} 1-0

[Event "Live Chess"]
[Site "Chess.com"]
[Date "2023.05.20"]
[Round "-"]
[White "ProfPoisson"]
[Black "TobyQuaite"]
[Result "0-1"]
[WhiteElo "1060"]
[BlackElo "1700"]
[TimeControl "300"]
[EndTime "11:01:53 PDT"]
[Termination "TobyQuaite won on time"]

1. e4 {[%clk 0:04:45.7]} 1... e6 {[%clk 0:04:59]} 2. d4 {[%clk 0:04:42]} 2... d5
{[%clk 0:04:58.6]} 3. e5 {[%clk 0:04:39.5]} 3... c5 {[%clk 0:04:57.3]} 4. c3
{[%clk 0:04:37.2]} 4... Nc6 {[%clk 0:04:56.7]} 5. Nf3 {[%clk 0:04:33.6]} 5...
Qb6 {[%clk 0:04:56.4]} 6. Bd3 {[%clk 0:04:29.9]} 6... cxd4 {[%clk 0:04:55.3]} 7.
O-O {[%clk 0:04:26.8]} 7... dxc3 {[%clk 0:04:54.2]} 8. Nxc3 {[%clk 0:04:23.9]}
8... Nge7 {[%clk 0:04:53.1]} 9. Be3 {[%clk 0:04:12.2]} 9... d4 {[%clk
0:04:49.8]} 10. Nxd4 {[%clk 0:04:07.2]} 10... Nxd4 {[%clk 0:04:48.6]} 11. Qg4
{[%clk 0:04:03.2]} 11... Nec6 {[%clk 0:04:37.6]} 12. Bb5 {[%clk 0:03:51.3]}
12... Bc5 {[%clk 0:03:59.9]} 13. Qxg7 {[%clk 0:03:43.1]} 13... Rf8 {[%clk
0:03:59]} 14. Bxc6+ {[%clk 0:03:17.6]} 14... Nxc6 {[%clk 0:03:56.7]} 15. Bh6
{[%clk 0:03:04.8]} 15... Bd7 {[%clk 0:03:49.8]} 16. Ne4 {[%clk 0:02:59.5]} 16...
O-O-O {[%clk 0:03:32.3]} 17. Rac1 {[%clk 0:02:49]} 17... Bd4 {[%clk 0:03:25.1]}
18. Nd6+ {[%clk 0:02:01.2]} 18... Kb8 {[%clk 0:03:24.2]} 19. Nc4 {[%clk
0:01:31]} 19... Qa6 {[%clk 0:03:07]} 20. Rfd1 {[%clk 0:01:15.7]} 20... Qxa2
{[%clk 0:02:36.2]} 21. Ra1 {[%clk 0:01:12.8]} 21... Qxc4 {[%clk 0:02:32.5]} 22.
Qg3 {[%clk 0:00:56.5]} 22... Bxe5 {[%clk 0:02:26.9]} 23. Qa3 {[%clk 0:00:49.2]}
23... Rg8 {[%clk 0:02:10.4]} 24. Be3 {[%clk 0:00:39]} 24... Qa6 {[%clk
0:01:48.7]} 25. Qxa6 {[%clk 0:00:16.2]} 25... bxa6 {[%clk 0:01:48.6]} 26. Rxa6
{[%clk 0:00:13.1]} 26... Kb7 {[%clk 0:01:48]} 27. Rda1 {[%clk 0:00:10]} 27...
Bxb2 {[%clk 0:01:46.8]} 28. Rb1 {[%clk 0:00:07.7]} 28... Kxa6 {[%clk 0:01:45.9]}
29. Rxb2 {[%clk 0:00:06.5]} 29... Rb8 {[%clk 0:01:43.5]} 0-1

[Event "Live Chess"]
[Site "Chess.com"]
[Date "2023.05.20"]
[Round "-"]
[White "Wlzard-1"]
[Black "LaupMiths"]
[Result "0-1"]
[WhiteElo "986"]
[BlackElo "1827"]
[TimeControl "300"]
[EndTime "11:01:57 PDT"]
[Termination "LaupMiths won on time"]

1. Nf3 {[%clk 0:04:53.6]} 1... Nf6 {[%clk 0:04:57.8]} 2. d4 {[%clk 0:04:51.9]}
2... d5 {[%clk 0:04:56.4]} 3. Nc3 {[%clk 0:04:49]} 3... g6 {[%clk 0:04:54.4]} 4.
g3 {[%clk 0:04:48.6]} 4... Bg7 {[%clk 0:04:52.8]} 5. Bg2 {[%clk 0:04:48.2]} 5...
O-O {[%clk 0:04:51.8]} 6. O-O {[%clk 0:04:47.7]} 6... b6 {[%clk 0:04:50.6]} 7.
Qd3 {[%clk 0:04:45.3]} 7... Bb7 {[%clk 0:04:49.9]} 8. Bg5 {[%clk 0:04:41.4]}
8... Nbd7 {[%clk 0:04:49]} 9. Ne5 {[%clk 0:04:37.8]} 9... h6 {[%clk 0:04:47.1]}
10. Nxd7 {[%clk 0:04:32.5]} 10... hxg5 {[%clk 0:04:45.4]} 11. Nxf8 {[%clk
0:04:28.8]} 11... Qxf8 {[%clk 0:04:43.4]} 12. Qb5 {[%clk 0:04:16.3]} 12... c6
{[%clk 0:04:40.8]} 13. Qd3 {[%clk 0:04:14.5]} 13... Bc8 {[%clk 0:04:39.4]} 14.
Qe3 {[%clk 0:04:06.2]} 14... g4 {[%clk 0:04:34.7]} 15. Qf4 {[%clk 0:03:56.5]}
15... Bf5 {[%clk 0:04:31.4]} 16. e4 {[%clk 0:03:42.9]} 16... dxe4 {[%clk
0:04:29.3]} 17. Nxe4 {[%clk 0:03:39.7]} 17... Nd5 {[%clk 0:04:27.5]} 18. Qd2
{[%clk 0:02:54.4]} 18... Rc8 {[%clk 0:04:25.4]} 19. Nc3 {[%clk 0:02:46.6]} 19...
Nb4 {[%clk 0:04:12.9]} 20. Ne4 {[%clk 0:02:20]} 20... e6 {[%clk 0:04:09.5]} 21.
c3 {[%clk 0:02:13.3]} 21... Nd5 {[%clk 0:04:07.8]} 22. Ng5 {[%clk 0:01:59.4]}
22... Bh6 {[%clk 0:04:02.4]} 23. h4 {[%clk 0:01:52.1]} 23... gxh3 {[%clk
0:04:00]} 24. Bxd5 {[%clk 0:01:43.4]} 24... cxd5 {[%clk 0:03:58]} 25. f4 {[%clk
0:01:22.7]} 25... Bxg5 {[%clk 0:03:48.5]} 26. fxg5 {[%clk 0:01:19.9]} 26... Qd6
{[%clk 0:03:47.7]} 27. Kh2 {[%clk 0:01:04.1]} 27... Kg7 {[%clk 0:03:45.3]} 28.
Rf4 {[%clk 0:00:59.6]} 28... Rh8 {[%clk 0:03:42.5]} 29. Qe2 {[%clk 0:00:43.4]}
29... Kg8 {[%clk 0:03:28.8]} 30. Raf1 {[%clk 0:00:31.2]} 30... Rh7 {[%clk
0:03:23.5]} 31. a3 {[%clk 0:00:22.2]} 31... Qe7 {[%clk 0:03:15.7]} 32. Qf3
{[%clk 0:00:20.1]} 32... Qxg5 {[%clk 0:03:13]} 33. g4 {[%clk 0:00:06.2]} 33...
Be4 {[%clk 0:03:07.7]} 34. Qg3 {[%clk 0:00:01.1]} 34... Qe7 {[%clk 0:02:56.7]}
0-1

[Event "Live Chess"]
[Site "Chess.com"]
[Date "2023.05.20"]
[Round "-"]
[White "matt1979"]
[Black "ClassyChameleon"]
[Result "0-1"]
[WhiteElo "1430"]
[BlackElo "1074"]
[TimeControl "300"]
[EndTime "11:01:57 PDT"]
[Termination "ClassyChameleon won by checkmate"]

1. f4 {[%clk 0:04:58.5]} 1... f5 {[%clk 0:04:58.9]} 2. e4 {[%clk 0:04:56.9]}
2... e6 {[%clk 0:04:52]} 3. d3 {[%clk 0:04:48.5]} 3... Bd6 {[%clk 0:04:45.2]} 4.
e5 {[%clk 0:04:44.3]} 4... Bc5 {[%clk 0:04:41.9]} 5. d4 {[%clk 0:04:42.8]} 5...
Bb6 {[%clk 0:04:40.9]} 6. c3 {[%clk 0:04:41]} 6... Nc6 {[%clk 0:04:39.6]} 7. Nf3
{[%clk 0:04:35]} 7... Nge7 {[%clk 0:04:36.3]} 8. Bb5 {[%clk 0:04:27.2]} 8... O-O
{[%clk 0:04:29.1]} 9. Ng5 {[%clk 0:04:21.7]} 9... Ng6 {[%clk 0:04:21.7]} 10. g3
{[%clk 0:04:13.8]} 10... d5 {[%clk 0:04:14.2]} 11. Bxc6 {[%clk 0:04:08.2]} 11...
bxc6 {[%clk 0:04:12.7]} 12. Nd2 {[%clk 0:04:04.4]} 12... c5 {[%clk 0:04:11.4]}
13. Ndf3 {[%clk 0:04:01.7]} 13... cxd4 {[%clk 0:04:09.2]} 14. cxd4 {[%clk
0:04:00.2]} 14... c5 {[%clk 0:04:06.7]} 15. h4 {[%clk 0:03:47.3]} 15... cxd4
{[%clk 0:04:01.9]} 16. Nxd4 {[%clk 0:03:45.3]} 16... Bxd4 {[%clk 0:03:57.5]} 17.
Qxd4 {[%clk 0:03:43.7]} 17... Qa5+ {[%clk 0:03:47.9]} 18. Bd2 {[%clk 0:03:41.7]}
18... Qa6 {[%clk 0:03:43.9]} 19. h5 {[%clk 0:03:35.8]} 19... Ne7 {[%clk
0:03:38]} 20. h6 {[%clk 0:03:32.6]} 20... g6 {[%clk 0:03:36.9]} 21. a3 {[%clk
0:03:25.4]} 21... Nc6 {[%clk 0:03:35.4]} 22. Qc5 {[%clk 0:03:19]} 22... Bd7
{[%clk 0:03:16]} 23. b4 {[%clk 0:03:14]} 23... Qd3 {[%clk 0:02:57]} 24. Rg1
{[%clk 0:02:55.1]} 24... Nd4 {[%clk 0:02:48.8]} 25. Qe7 {[%clk 0:02:38]} 25...
Qe2# {[%clk 0:02:39]} 0-1